bitfinex/quotes_ETHUSD_20220212
["timestamp","ask_amount","ask_price","bid_price","bid_amount"]
[1644650719042,0.00856474,2916.4,2916.1,0.03496338]
[1644650720043,0.1713,2916.7,2916.1,0.03496338]
[1644650720243,0.00856474,2916.4,2916.1,0.03496338]
[1644650721291,0.1713,2916.7,2916.1,0.03496338]
[1644650721491,0.00856474,2916.4,2916.1,0.03496338]
[1644650721690,0.00856474,2916.4,2915.9,0.001]
[1644650722497,0.1713,2916.3,2915.9,0.001]
[1644650722695,0.494,2916.2,2915.8,0.03496067]
[1644650722892,1.7999869,2916.2,2915.8,0.03496067]
[1644650723091,2.0999869,2916.2,2915.8,0.03496067]
[1644650723292,0.1713,2916.1,2915.8,0.03496067]
[1644650723993,0.17986499,2916.1,2915.8,0.03496067]
[1644650724840,0.1713,2916.1,2915.8,0.03496067]
[1644650725244,1.48585189,2916.1,2915.8,0.03496067]
[1644650725442,0.47986499,2916.1,2915.8,0.03496067]
[1644650725641,0.17986499,2916.1,2915.8,0.03496067]
[1644650726045,0.1713,2916.1,2915.8,0.03496067]
[1644650726247,0.17986499,2916.1,2915.8,0.03496067]
[1644650726647,0.17986499,2916.1,2915.5,0.4213]
[1644650726844,0.17986499,2916.1,2915.4,0.03596338]
[1644650726845,0.67386499,2916.1,2915.4,0.03596338]
[1644650727044,0.50256499,2916.1,2915.4,0.03496338]
[1644650727246,0.494,2916.1,2915.4,0.03496338]
[1644650727444,0.00856516,2915.9,2915.4,0.03496338]
[1644650728493,0.494,2916.1,2915.4,0.03496338]
[1644650728702,0.00856524,2915.8,2915.4,0.03496338]
[1644650729702,0.1713,2916.0,2915.4,0.03496338]
[1644650729904,0.00793162,2915.7,2915.4,0.03496338]
[1644650730903,0.494,2916.1,2915.4,0.03496338]
[1644650731104,0.00793166,2915.7,2915.4,0.03496338]
[1644650731965,0.6653,2916.1,2915.4,0.03496338]
[1644650732368,0.00793166,2915.7,2915.4,0.03496338]
[1644650733167,0.6653,2916.1,2915.4,0.03496338]
[1644650733570,0.00793166,2915.7,2915.4,0.03496338]
[1644650734169,0.00641862,2915.7,2915.4,0.03496338]
[1644650734370,0.3,2916.2,2915.4,0.03496338]
[1644650734768,2.7999869,2916.5,2915.4,0.03496338]
[1644650734769,3.3999869,2916.5,2915.4,0.03496338]
[1644650734968,0.85784,2916.3,2915.4,0.03496338]
[1644650735167,1.15784,2916.3,2915.4,0.03496338]
[1644650735372,1.45784,2916.3,2915.4,0.03496338]
[1644650736794,0.14694628,2916.2,2915.4,0.03496338]
[1644650738296,0.00856511,2915.9,2915.4,0.03496338]
[1644650739336,0.14694628,2916.2,2915.4,0.03496338]
[1644650739536,0.00856524,2915.8,2915.4,0.03496338]
[1644650739937,0.14694628,2915.7,2915.4,0.03496338]
[1644650740742,0.15551147,2915.7,2915.4,0.03496338]
[1644650741746,0.14694628,2915.7,2915.4,0.03496338]
[1644650741943,0.15551147,2915.7,2915.4,0.03496338]
[1644650742744,0.14694628,2915.7,2915.4,0.03496338]
[1644650743193,0.15551147,2915.7,2915.4,0.03496338]
[1644650743593,0.00856519,2915.7,2915.4,0.03496338]
[1644650743994,0.31824628,2916.2,2915.4,0.03496338]
[1644650744194,0.00856519,2915.7,2915.4,0.03496338]
[1644650745198,0.14694628,2916.2,2915.4,0.03496338]
[1644650745398,0.00856519,2915.7,2915.4,0.03496338]
[1644650746499,0.1713,2916.1,2915.4,0.03496338]
[1644650746700,0.14694628,2915.6,2915.4,0.03496338]
[1644650750587,0.00856508,2915.7,2915.4,0.03496338]
[1644650751193,0.14694628,2916.1,2915.5,1.45958026]
[1644650751393,0.14694628,2916.1,2915.6,0.001]
[1644650751690,0.14694628,2916.1,2915.7,0.1713]
[1644650751889,0.14694628,2916.1,2915.7,0.1723]
[1644650752290,0.14694628,2916.1,2915.8,1.459502]
[1644650752489,0.14694628,2916.1,2915.9,0.001]
[1644650752692,0.14694628,2916.1,2915.6,0.1723]
[1644650752892,0.14694628,2916.1,2915.8,0.1713]
[1644650752893,0.00856503,2916.0,2915.8,0.1713]
[1644650753093,0.00856503,2916.0,2915.8,0.001]
[1644650753292,0.14694628,2916.1,2915.9,3.3]
[1644650753293,1.131e-05,2916.1,2915.9,3.3]
[1644650753493,1.131e-05,2916.1,2916.0,1.46050528]
[1644650753692,1.131e-05,2916.1,2916.0,2.46050528]
[1644650755142,1.131e-05,2916.1,2916.0,2.63180528]
[1644650757343,1.131e-05,2916.1,2916.0,1.001]
[1644650757743,1.131e-05,2916.1,2916.0,0.1723]
[1644650760194,1.131e-05,2916.1,2916.0,0.65982362]
[1644650760894,1.131e-05,2916.1,2916.0,0.001]
[1644650762539,1.131e-05,2916.1,2916.0,1.46047752]
[1644650762939,1.131e-05,2916.1,2916.0,1.001]
[1644650763340,1.131e-05,2916.1,2916.0,0.001]
[1644650765146,1.131e-05,2916.1,2916.0,1.46044573]
[1644650765446,1.131e-05,2916.1,2916.0,2.46044573]
[1644650765919,1.131e-05,2916.1,2916.0,1.001]
[1644650766321,1.131e-05,2916.1,2916.0,0.001]
[1644650767722,0.00616694,2916.2,2916.1,3.30078869]
[1644650767922,0.00616694,2916.2,2916.1,5.93251612]
[1644650768121,1.3059869,2917.3,2916.1,4.47308869]
[1644650768322,0.00856974,2916.3,2916.2,1.001]
[1644650768723,0.00856974,2916.3,2916.2,1.77208456]
[1644650769222,0.1713,2917.2,2916.2,1.77208456]
[1644650769442,0.00388886,2917.3,2916.3,0.1723]
[1644650769845,0.00821754,2916.4,2916.3,0.1723]
[1644650770445,0.00821754,2916.4,2916.3,0.001]
[1644650770647,0.00388886,2917.3,2916.3,0.001]
[1644650770844,0.00821747,2916.5,2916.3,0.001]
[1644650771049,0.00821747,2916.5,2916.4,5.0]
[1644650771050,1.747e-05,2916.5,2916.4,5.0]
[1644650771246,1.747e-05,2916.5,2916.4,7.42551865]
[1644650771446,1.747e-05,2916.5,2916.4,8.72551865]
[1644650771749,0.03285861,2917.5,2916.5,3.3]
[1644650771953,0.00388886,2918.0,2917.2,5.0]
[1644650772148,0.1713,2918.1,2917.4,5.0]
[1644650772149,0.00388886,2917.8,2917.4,5.0]
[1644650772349,0.00388886,2918.0,2917.5,2.0458451]
[1644650772549,0.00388886,2918.3,2917.6,0.494]
[1644650772750,0.00388886,2918.3,2917.6,0.794]
[1644650773197,0.00856825,2918.1,2917.6,1.794]
[1644650773800,0.00856825,2918.1,2917.7,0.3]
[1644650773999,0.00856825,2918.1,2917.9,5.0]
[1644650774201,0.00388886,2918.7,2918.0,0.494]
[1644650774399,8.6639,2920.1,2918.3,5.0]
[1644650774400,0.00388886,2918.8,2918.3,5.0]
[1644650774601,0.02464113,2918.5,2918.1,4.2406]
[1644650774799,0.02464113,2918.5,2918.4,1.14758868]
[1644650775098,1.3059869,2919.5,2918.5,3.1]
[1644650775302,1.3059869,2919.5,2918.4,1.14758868]
[1644650775303,0.17498886,2919.3,2918.4,1.14758868]
[1644650775502,0.00388886,2919.3,2918.4,1.14758868]
[1644650775702,1.3059869,2919.6,2918.4,1.14758868]
[1644650775904,0.17498886,2919.3,2918.4,1.14758868]
[1644650776102,0.00388886,2919.5,2919.3,0.66531704]
[1644650776303,0.00388886,2919.5,2918.4,0.494]
[1644650776304,0.1711,2919.4,2918.5,1.1738]
[1644650776505,0.1711,2919.6,2918.5,1.1738]
[1644650776703,0.00389623,2919.3,2918.5,1.1738]
[1644650776947,1.30988313,2919.5,2918.5,2.1738]
[1644650777151,0.1711,2919.4,2918.5,2.1738]
[1644650777348,0.00389623,2919.3,2918.6,0.7289343]
[1644650778147,0.00857276,2919.1,2918.6,0.7289343]
[1644650778549,0.00857276,2919.1,2918.4,0.50214124]
[1644650778749,0.01246899,2919.1,2918.4,0.00814124]
[1644650778950,0.30857276,2919.1,2918.4,0.00814124]
[1644650779149,0.00145563,2918.4,2918.2,0.001]
[1644650779555,0.00145563,2918.4,2918.1,0.1721]
[1644650779754,0.00145563,2918.4,2918.2,0.63435206]
[1644650779949,0.00145563,2918.4,2918.2,0.63535206]
[1644650780606,0.00145563,2918.4,2918.2,0.64349386]
[1644650780997,0.00145563,2918.4,2918.2,0.64249386]
[1644650781598,0.00145563,2918.4,2918.2,0.63435206]
[1644650781800,0.00145563,2918.4,2918.2,0.64249386]
[1644650781999,0.00145563,2918.4,2918.2,0.0081418]
[1644650782799,0.00145563,2918.4,2917.9,0.001]
[1644650782999,0.00145563,2918.4,2918.2,0.0081418]
[1644650783198,0.00145563,2918.4,2918.2,0.8236166]
[1644650783898,0.00145563,2918.4,2918.2,0.8154748]
[1644650784338,0.00145563,2918.4,2918.2,0.0081418]
[1644650785138,0.00145563,2918.4,2917.9,0.001]
[1644650785339,0.00145563,2918.4,2918.2,0.0081418]
[1644650786342,0.00145563,2918.4,2918.1,0.79982365]
[1644650786542,0.00145563,2918.4,2918.2,0.00763293]
[1644650786742,0.00145563,2918.4,2918.3,0.03539351]
[1644650787141,0.00842008,2918.6,2918.3,0.03539351]
[1644650787142,0.00050574,2918.6,2918.3,0.03539351]
[1644650787545,0.47519623,2918.9,2918.3,0.03539351]
[1644650787742,0.77519623,2918.9,2918.3,0.03539351]
[1644650787943,0.17519623,2918.9,2918.3,0.03539351]
[1644650788197,0.47519623,2918.9,2918.3,0.03539351]
[1644650788396,0.17519623,2918.9,2918.3,0.03539351]
[1644650788797,0.00389623,2918.9,2918.3,0.03539351]
[1644650788995,0.00389623,2918.9,2918.6,0.74683316]
[1644650789497,0.85677,2919.3,2918.6,0.74683316]
[1644650789498,0.00389623,2919.1,2918.6,0.74683316]
[1644650789694,0.85677,2919.3,2918.6,0.74683316]
[1644650789695,0.00389623,2919.2,2918.6,0.74683316]
[1644650790100,0.00389623,2919.2,2918.6,1.04683316]
[1644650790296,0.00857284,2919.0,2918.6,1.04683316]
[1644650790498,0.00857284,2919.0,2918.7,5.0]
[1644650790696,0.00857284,2919.0,2918.8,4.00993054]
[1644650790895,0.00857284,2919.0,2918.9,3.68599108]
[1644650791097,0.17499623,2919.8,2918.9,3.68599108]
[1644650791297,0.17499623,2919.8,2918.9,3.51489108]
[1644650791499,0.0085728,2919.0,2918.9,3.51489108]
[1644650791698,0.0085728,2919.0,2918.9,4.08891723]
[1644650792343,0.17499623,2919.8,2918.9,4.08891723]
[1644650792544,0.17499623,2919.8,2919.4,0.6758229]
[1644650792545,0.03428589,2919.5,2919.4,0.6758229]
[1644650793243,0.03428589,2919.5,2918.9,10.09259751]
[1644650793643,0.00389623,2919.9,2919.0,0.1711]
[1644650793844,0.00857255,2919.3,2919.0,0.1711]
[1644650794246,0.00857255,2919.3,2919.1,0.6901283]
[1644650794645,0.00389623,2920.1,2919.1,0.6901283]
[1644650794845,0.00613023,2919.3,2919.1,0.6901283]
[1644650795694,0.00613023,2919.3,2919.2,3.28118048]
[1644650795901,0.00389623,2920.2,2919.2,3.28118048]
[1644650796097,3.35449,2920.4,2919.2,3.28118048]
[1644650796098,0.00613023,2919.3,2919.2,3.28118048]
[1644650796300,0.00613023,2919.3,2919.2,3.28075874]
[1644650797100,0.00389623,2920.3,2919.2,3.28075874]
[1644650797400,0.00389623,2920.3,2919.3,0.1711]
[1644650798399,0.00389623,2920.3,2919.5,0.73061737]
[1644650798600,0.0085772,2919.9,2919.5,0.73061737]
[1644650798802,0.0085772,2919.9,2919.2,3.28075874]
[1644650799538,0.86045623,2920.1,2919.1,1.1889]
[1644650799539,1.71709623,2920.1,2919.1,1.1889]
[1644650799738,0.00806013,2919.7,2919.1,1.1889]
[1644650799944,0.86472013,2919.7,2919.1,1.97408195]
[1644650800144,0.00389623,2919.6,2919.2,3.25922818]
[1644650800345,0.00806013,2919.7,2919.2,3.25922818]
[1644650800549,0.00806013,2919.7,2919.3,0.1711]
[1644650800946,0.00389623,2920.3,2919.3,0.1711]
[1644650801147,0.00806019,2919.6,2919.3,0.1711]
[1644650801749,0.00806019,2919.6,2919.5,0.05234116]
[1644650801946,0.00389623,2920.3,2919.5,0.71744116]
[1644650802148,7.24113,2920.6,2919.5,0.71744116]
[1644650802149,0.02451652,2920.0,2919.6,3.36453261]
[1644650802349,0.02451652,2920.0,2919.6,3.66453261]
[1644650802551,0.02451652,2920.0,2919.6,0.3]
[1644650802749,0.02451652,2920.0,2919.7,6.42597889]
[1644650802950,0.02451652,2920.0,2919.7,7.67147889]
[1644650803203,3.19429623,2921.2,2919.9,0.99200337]
[1644650803398,3.02319623,2921.2,2920.0,0.494]
[1644650803601,0.02457622,2920.4,2920.1,0.1711]
[1644650804399,3.02319623,2921.2,2920.2,0.67561025]
[1644650804799,3.02319623,2921.2,2920.3,3.54105227]
[1644650805000,0.00389623,2921.2,2920.3,3.54105227]
[1644650805199,0.00389623,2921.2,2920.4,0.494]
[1644650805400,0.00389623,2921.5,2920.4,0.494]
[1644650805702,0.00389623,2921.6,2920.4,0.494]
[1644650805898,3.3125,2921.9,2920.5,0.1711]
[1644650805899,0.0061067,2920.9,2920.5,0.1711]
[1644650806099,0.0061067,2920.9,2920.6,1.14146404]
[1644650806300,0.0061067,2920.9,2920.6,1.44146404]
[1644650806947,0.85618,2921.7,2920.6,1.14146404]
[1644650807149,0.00860127,2920.9,2920.6,1.14146404]
[1644650807948,0.00860127,2920.9,2920.7,3.24303797]
[1644650808156,0.00389623,2921.8,2920.7,8.59131762]
[1644650808354,0.00860127,2920.9,2920.8,1.5210008]
[1644650808553,0.00860127,2920.9,2920.8,5.1179465]
[1644650808752,0.00860127,2920.9,2920.8,4.5620457]
[1644650809155,0.00860127,2920.9,2920.8,1.2651]
[1644650809352,0.17499623,2922.1,2921.5,0.84226855]
[1644650809555,0.17499623,2922.1,2921.5,0.7089579]
[1644650810590,0.00860037,2921.9,2921.5,0.7089579]
[1644650810792,1.02717,2921.8,2921.5,0.7089579]
[1644650811192,0.1711,2921.8,2921.5,0.7089579]
[1644650811691,3.04266216,2922.8,2921.8,3.3]
[1644650811893,0.31252136,2923.5,2922.3,5.0]
[1644650812092,2.05575388,2923.6,2922.4,3.512383]
[1644650812093,2.22685388,2923.6,2922.4,3.512383]
[1644650812294,2.05575388,2923.6,2922.5,0.494]
[1644650812704,2.05575388,2923.6,2922.5,8.994]
[1644650812899,2.05575388,2923.6,2922.9,5.0]
[1644650813096,0.4995,2924.0,2923.0,4.165]
[1644650813298,0.4995,2924.0,2923.1,5.0]
[1644650813500,0.4995,2924.0,2923.2,1.3490283]
[1644650813698,0.4995,2924.0,2923.3,0.3]
[1644650813896,0.4995,2924.0,2923.4,0.494]
[1644650814359,0.00606626,2923.8,2923.5,3.5]
[1644650814552,0.00606626,2923.8,2923.6,0.494]
[1644650814754,0.00606626,2923.8,2923.6,0.794]
[1644650814954,0.00606626,2923.8,2923.6,0.494]
[1644650815154,0.4995,2924.0,2923.2,0.171]
[1644650815353,0.4995,2924.0,2923.0,0.25]
[1644650815354,0.4995,2924.0,2923.1,0.494]
[1644650815560,0.4995,2924.0,2922.7,3.994]
[1644650815561,0.00855832,2923.8,2922.7,3.994]
[1644650815759,0.00855832,2923.8,2922.8,3.5]
[1644650815760,0.171,2923.7,2922.8,3.5]
[1644650816354,0.171,2923.7,2923.0,0.03343851]
[1644650816554,0.4995,2924.0,2923.0,0.03343851]
[1644650816555,0.171,2923.9,2923.0,0.03343851]
[1644650816755,0.00855871,2923.4,2923.0,0.03343851]
[1644650817755,0.171,2923.7,2923.0,0.03343851]
[1644650817954,0.88089157,2923.9,2923.0,0.03343851]
[1644650817955,0.00855875,2923.3,2923.0,0.03343851]
[1644650818404,0.88073018,2923.3,2923.0,0.03343851]
[1644650818807,0.00855875,2923.3,2923.0,0.03343851]
[1644650819004,0.171,2923.3,2923.0,0.03343851]
[1644650819203,0.1795588,2923.3,2923.0,0.03343851]
[1644650820004,0.171,2923.5,2923.0,0.03343851]
[1644650820209,0.471,2923.5,2923.0,0.03343851]
[1644650820406,0.0085588,2923.3,2923.0,0.03343851]
[1644650821208,0.471,2923.5,2923.0,0.03343851]
[1644650821707,0.0060459,2923.3,2923.0,0.03343851]
[1644650822545,0.171,2923.5,2923.0,0.03343851]
[1644650822746,0.00858591,2923.3,2923.0,0.03343851]
[1644650823748,1.39306948,2924.0,2923.0,0.03343851]
[1644650823953,0.00858591,2923.3,2923.1,0.171]
[1644650824948,0.4995,2924.0,2923.1,0.171]
[1644650825147,0.00858586,2923.3,2923.1,0.171]
[1644650825347,0.00858586,2923.3,2923.2,0.494]
[1644650825592,0.00858586,2923.3,2923.2,3.90626604]
[1644650825993,0.03433831,2923.8,2923.2,4.20626604]
[1644650826194,0.4995,2924.0,2923.9,0.76988955]
[1644650826397,0.4995,2924.0,2923.9,4.53801998]
[1644650826997,0.171,2925.0,2924.0,3.3]
[1644650827198,0.171,2925.0,2924.6,0.77183542]
[1644650827397,0.1708,2925.3,2924.6,0.77183542]
[1644650827596,0.003503,2925.8,2924.6,0.77183542]
[1644650827597,0.00395518,2925.2,2924.6,0.77183542]
[1644650827997,0.17475518,2925.5,2924.6,0.77183542]
[1644650828200,0.17475518,2925.6,2924.6,0.77183542]
[1644650828400,0.00395518,2925.4,2924.6,0.77183542]
[1644650828598,0.003503,2925.8,2924.6,0.77183542]
[1644650828599,0.1708,2925.3,2924.6,0.77183542]
[1644650828798,0.003503,2925.8,2924.6,0.77183542]
[1644650828799,0.00395518,2925.6,2924.6,0.77183542]
[1644650829003,0.003503,2925.8,2924.6,0.77183542]
[1644650829004,0.00395518,2925.2,2924.6,0.77183542]
[1644650829203,0.17475518,2925.6,2924.3,0.13819996]
[1644650829447,0.003503,2925.8,2924.3,0.13819996]
[1644650829448,0.17475518,2925.4,2924.5,5.0]
[1644650829648,0.1708,2925.4,2924.6,4.13219997]
[1644650829846,0.00395518,2925.3,2924.6,0.93219997]
[1644650830045,0.00603953,2925.1,2924.6,0.93219997]
[1644650830246,0.00603953,2925.1,2924.8,1.7092333]
[1644650830247,3.953e-05,2925.1,2924.8,1.7092333]
[1644650830449,0.1708,2925.4,2925.0,3.3]
[1644650830646,0.1708,2925.4,2925.1,0.1708]
[1644650830845,0.1708,2925.4,2925.2,0.494]
[1644650831247,0.003503,2925.8,2925.3,0.82324752]
[1644650831447,0.003503,2925.8,2925.3,4.81724752]
[1644650831648,3.0799,2927.5,2925.4,1.879788]
[1644650831850,1.2074,2928.1,2925.6,3.31227637]
[1644650832049,0.04320018,2926.4,2926.2,0.25]
[1644650832248,4.3064,2928.1,2926.4,2.75]
[1644650832447,3.11180863,2928.1,2926.6,0.8542539]
[1644650832647,0.00396422,2928.0,2926.7,0.494]
[1644650832848,0.01280863,2928.1,2927.0,0.25]
[1644650833099,0.00396422,2928.5,2927.0,0.25]
[1644650833300,0.1707,2928.4,2927.4,0.85029605]
[1644650833503,0.77067499,2928.6,2927.1,1.7]
[1644650833700,0.17456422,2928.3,2927.0,0.25]
[1644650833902,0.8543,2928.2,2927.0,3.75]
[1644650834102,0.1706,2928.1,2927.0,0.25]
[1644650834406,0.1706,2928.1,2927.1,0.494]
[1644650834407,0.00396422,2928.0,2927.1,0.494]
[1644650834602,0.00396422,2928.0,2927.2,3.5]
[1644650834802,0.275,2929.1,2927.2,3.5]
[1644650834803,0.17456422,2929.0,2927.3,0.494]
[1644650835003,0.00860502,2927.7,2927.4,3.5]
[1644650835204,5.02e-06,2927.7,2927.6,0.25]
[1644650835403,1.996e-05,2928.1,2927.6,4.244]
[1644650835605,1.996e-05,2928.1,2927.8,6.172]
[1644650835803,1.996e-05,2928.1,2927.9,0.494]
[1644650836003,0.00396422,2928.9,2928.1,1.7074202]
[1644650836204,0.00396422,2928.9,2928.2,0.744]
[1644650836405,0.1706,2928.8,2928.3,0.494]
[1644650836605,0.1706,2929.6,2928.3,0.494]
[1644650836870,0.00396422,2930.0,2928.3,0.494]
[1644650837060,7.6306,2930.1,2928.3,0.494]
[1644650837061,0.00396422,2929.5,2928.3,0.494]
[1644650837257,0.85396,2929.3,2928.3,0.494]
[1644650837457,0.1706,2929.2,2928.3,0.494]
[1644650837660,0.1706,2929.2,2928.2,0.25]
[1644650837661,0.17456422,2929.2,2928.2,0.25]
[1644650837858,0.45191648,2929.2,2927.2,0.1706]
[1644650838060,0.45191648,2929.2,2927.1,0.17159194]
[1644650838061,0.01297648,2928.8,2927.1,0.17159194]
[1644650838261,0.68543347,2928.2,2926.9,0.1706]
[1644650838559,0.00396422,2928.1,2926.9,0.1706]
[1644650838759,0.00396422,2928.1,2926.8,0.63219996]
[1644650838760,0.1706,2928.0,2926.8,0.63219996]
[1644650838959,0.1706,2928.0,2926.3,0.1706]
[1644650838960,0.00396422,2927.9,2926.3,0.1706]
[1644650839160,0.00396422,2927.9,2926.1,7.2562157]
[1644650839161,0.70314587,2927.0,2926.1,0.8544157]
[1644650839361,0.00396422,2926.9,2926.0,0.1708]
[1644650839563,0.17476422,2926.9,2925.6,0.1708]
[1644650839759,0.47476422,2926.9,2925.6,0.1708]
[1644650840161,0.47476422,2926.9,2925.5,1.02462099]
[1644650840162,0.17476422,2926.9,2925.5,1.02462099]
[1644650840360,0.17476422,2926.9,2925.5,0.1708]
[1644650840895,0.47476422,2926.9,2925.5,0.1708]
[1644650841095,4.0947318,2926.8,2925.5,0.1708]
[1644650841297,0.64494892,2926.1,2925.4,0.1708]
[1644650841506,0.00396422,2926.0,2925.4,0.1708]
[1644650841696,0.00396422,2926.0,2925.2,0.1708]
[1644650843300,0.00396422,2926.5,2925.2,0.1708]
[1644650843499,0.99293997,2926.7,2925.4,0.8546123]
[1644650843500,0.00396422,2926.6,2925.4,0.8546123]
[1644650843700,0.00396422,2926.6,2925.5,0.1708]
[1644650843903,0.00396422,2926.6,2925.5,0.4708]
[1644650844099,0.00396422,2927.0,2926.4,0.68325136]
[1644650844369,0.00396422,2927.2,2926.5,0.1708]
[1644650844555,0.1708,2928.0,2926.5,0.1708]
[1644650844556,0.00396422,2927.9,2926.5,0.1708]
[1644650844757,0.02402021,2927.3,2926.5,0.1708]
[1644650845356,0.1708,2927.2,2926.5,0.1708]
[1644650845557,0.00396422,2927.1,2925.9,0.3]
[1644650845755,0.00396422,2927.1,2925.8,6.2635]
[1644650845958,0.1708,2927.1,2926.1,0.86142031]
[1644650846156,0.00600655,2927.4,2926.1,1.16142031]
[1644650846356,0.00396422,2927.0,2926.2,0.1708]
[1644650846556,0.00600655,2927.4,2925.8,4.4927]
[1644650846557,0.1708,2927.3,2925.8,4.4927]
[1644650846757,0.02020559,2925.9,2925.8,4.4927]
[1644650846960,0.02020559,2925.9,2925.5,5.5322]
[1644650847156,0.02148549,2926.0,2925.9,0.03812178]
[1644650851848,0.02781877,2926.0,2925.9,0.03812178]
[1644650852743,0.02781877,2926.0,2925.9,0.20892178]
[1644650853547,0.02781877,2926.0,2925.9,0.03812178]
[1644650854850,0.19861877,2926.0,2925.9,0.03812178]
[1644650855057,0.19861877,2926.0,2925.8,0.00861081]
[1644650855058,3.3,2925.9,2925.8,0.00861081]
[1644650855248,0.00455135,2925.8,2924.7,0.25]
[1644650855455,0.85515,2925.6,2924.0,7.3718]
[1644650855716,0.72952079,2924.7,2924.0,7.3718]
[1644650855917,0.00396422,2924.6,2923.8,0.1708]
[1644650856116,0.00396422,2925.4,2923.7,1.0258628]
[1644650856316,0.1708,2925.3,2923.7,1.0258628]
[1644650856516,1.45515,2925.6,2923.7,1.0258628]
[1644650856517,0.00396422,2925.2,2923.7,1.0258628]
[1644650856715,1.45515,2925.6,2924.4,0.00692342]
[1644650856716,0.00396422,2925.4,2924.4,0.00692342]
[1644650856917,0.7971459,2925.4,2924.4,0.00692342]
[1644650857720,0.7971459,2925.4,2924.2,0.1708]
[1644650857916,0.7971459,2925.4,2924.8,0.00692259]
[1644650857917,0.00396422,2925.4,2924.8,0.00692259]
[1644650858321,0.00396422,2925.6,2924.8,0.00692259]
[1644650858520,0.00396422,2925.7,2924.8,0.00692259]
[1644650858720,0.00396422,2925.8,2924.8,0.00692259]
[1644650858921,0.00396422,2925.8,2924.2,0.1708]
[1644650858922,0.656231,2925.7,2924.2,0.4708]
[1644650859121,0.00396422,2925.6,2925.1,0.00692177]
[1644650859851,3.2166,2925.9,2925.1,0.00692177]
[1644650859852,0.00396422,2925.8,2925.1,0.00692177]
[1644650860051,0.00396422,2925.8,2924.4,1.7095177]
[1644650860354,0.15271045,2926.2,2925.2,0.0078897]
[1644650860553,0.1708,2926.0,2925.2,0.0078897]
[1644650860757,0.0039823,2926.1,2925.2,0.80879485]
[1644650861059,0.17874944,2926.2,2925.4,0.8545508]
[1644650861060,0.0039823,2925.9,2925.4,0.8545508]
[1644650861255,0.0039823,2926.1,2925.3,0.1708]
[1644650861456,0.13819997,2926.3,2924.9,2.880106]
[1644650861457,0.0039823,2926.2,2924.9,2.880106]
[1644650861657,0.1747823,2926.2,2924.9,3.480106]
[1644650861857,0.18273232,2926.2,2925.5,0.00788889]
[1644650862257,0.93406017,2926.2,2925.5,0.00788889]
[1644650862556,0.92611015,2926.2,2925.3,0.41]
[1644650862757,0.93406055,2926.2,2925.7,0.00788849]
[1644650863799,0.92611015,2926.2,2924.9,3.290106]
[1644650863999,0.93363398,2926.2,2925.7,0.00703775]
[1644650864399,1.53363398,2926.2,2925.7,0.00703775]
[1644650864601,3.60131578,2926.1,2925.7,0.00703775]
[1644650864801,1.02571,2926.0,2925.7,0.00703775]
[1644650865002,1.32571,2926.0,2924.5,0.1708]
[1644650865206,5.0,2925.4,2924.5,0.1708]
[1644650865401,5.0,2925.4,2923.7,3.8159]
[1644650865402,5.0,2925.2,2923.7,0.25]
[1644650865604,0.85535,2925.0,2923.7,0.25]
[1644650865904,0.85534,2924.7,2923.4,3.5]
[1644650866100,0.1708,2924.6,2923.4,3.5]
[1644650866300,0.1708,2924.6,2923.4,3.91]
[1644650866301,0.0039823,2924.6,2923.4,3.91]
[1644650866501,0.84271138,2925.3,2923.4,3.91]
[1644650866502,0.0039823,2925.2,2924.2,0.00719697]
[1644650866701,0.3039823,2925.2,2924.2,0.00719697]
[1644650867349,0.3039823,2925.2,2923.6,0.25]
[1644650867749,0.3039823,2925.2,2924.6,0.00719611]
[1644650867953,0.74753913,2924.7,2924.6,0.00719611]
[1644650868553,0.0039823,2925.0,2923.7,0.1709]
[1644650868755,0.0039823,2924.7,2924.5,0.00719623]
[1644650868952,0.0039823,2925.0,2924.5,0.00719623]
[1644650869156,1.1591823,2925.1,2924.5,0.00719623]
[1644650869355,1.3299823,2925.1,2924.5,0.00719623]
[1644650869553,0.74838866,2924.9,2924.5,0.00719623]
[1644650869753,0.74838866,2924.9,2923.7,0.1709]
[1644650869958,0.74838866,2924.9,2924.7,0.00719586]
[1644650869959,0.0039823,2924.8,2924.7,0.00719586]
[1644650870155,1.326,2925.1,2924.7,0.00719586]
[1644650870156,0.4747823,2925.1,2924.7,0.00719586]
[1644650870361,0.4708,2925.1,2924.7,0.00719586]
[1644650870604,0.1708,2925.1,2924.7,0.00719586]
[1644650870809,0.0039823,2925.6,2924.7,0.00719586]
[1644650871004,0.0039823,2925.6,2923.9,0.1708]
[1644650871205,0.0039823,2925.6,2924.8,0.00713674]
[1644650871409,0.65123228,2925.1,2924.8,0.00713674]
[1644650871606,0.0039823,2925.6,2924.8,0.00713674]
[1644650871808,0.024292,2925.1,2924.8,0.00713674]
[1644650872206,0.024292,2925.1,2924.3,0.1708]
[1644650872207,0.024292,2925.1,2924.4,5.0]
[1644650872407,0.1708,2925.9,2925.3,0.09455061]
[1644650872408,0.0039823,2925.8,2925.3,0.09455061]
[1644650872806,0.0039823,2925.8,2925.4,0.1708]
[1644650873006,0.1708,2925.9,2925.4,0.1708]
[1644650873211,0.1747823,2925.9,2925.4,0.1708]
[1644650873413,0.1708,2925.9,2925.4,0.1708]
[1644650873611,0.1708,2925.9,2925.5,0.00713491]
[1644650874213,0.75661212,2925.8,2925.5,0.00713491]
[1644650874646,0.75661212,2925.8,2925.4,0.1708]
[1644650874848,0.1747823,2925.9,2925.4,0.1708]
[1644650875147,0.1708,2925.9,2925.4,0.1708]
[1644650875446,0.00942047,2926.2,2925.4,0.1708]
[1644650875847,0.62765246,2925.7,2925.4,0.1708]
[1644650876447,0.18022075,2926.2,2925.5,0.04281179]
[1644650877054,0.1747823,2926.2,2925.5,0.04281179]
[1644650877253,0.18022084,2926.2,2925.5,0.04281179]
[1644650878301,0.1747823,2926.2,2925.5,0.04281179]
[1644650878502,0.76730522,2926.1,2925.7,0.00824555]
[1644650879205,0.3,2926.0,2925.7,0.00824555]
[1644650879404,0.3,2926.0,2925.5,0.04281179]
[1644650879405,0.1708,2925.9,2925.5,0.04281179]
[1644650879805,0.1708,2925.9,2925.7,0.00692285]
[1644650880206,0.77128752,2926.1,2925.7,0.00692285]
[1644650880207,0.4708,2926.0,2925.7,0.00692285]
[1644650880606,0.4708,2926.0,2925.5,0.04281179]
[1644650880807,0.1708,2926.0,2925.5,0.04281179]
[1644650881008,0.1708,2926.0,2925.7,0.00692285]